fUSD/lending_fUSD_20241225
["ID","MTS","AMOUNT","RATE_DAILY","PERIOD"]
[346633577,1735132252707,-500.0,0.00011839,2]
[346633578,1735132252716,-500.0,0.00011839,2]
[346633579,1735132252726,-500.0,0.00011839,2]
[346633580,1735132252735,-500.0,0.00011839,2]
[346633581,1735132252744,-500.0,0.00011839,2]
[346633582,1735132252753,-500.0,0.00011839,2]
[346633583,1735132252763,-500.0,0.00011839,2]
[346633584,1735132252772,-512.84,0.00011839,2]
[346633585,1735132252782,-500.0,0.00011839,2]
[346633586,1735132252791,-660.41,0.00011839,2]
[346633587,1735132252801,-861.14,0.00011839,2]
[346633588,1735132252810,-513.24,0.00011839,2]
[346633589,1735132252820,-689.84,0.00011839,2]
[346633590,1735132252830,-500.0,0.00011839,2]
[346633591,1735132252840,-500.0,0.00011839,2]
[346633592,1735132252850,-500.0,0.00011839,2]
[346633593,1735132252859,-500.0,0.00011839,2]
[346633594,1735132252868,-737.66,0.00011839,2]
[346633595,1735132252878,-500.0,0.00011839,2]
[346633596,1735132252887,-500.0,0.00011839,2]
[346633597,1735132252897,-951.72,0.00011839,2]
[346633598,1735132252907,-670.4,0.00011839,2]
[346633599,1735132252916,-500.0,0.00011839,2]
[346633600,1735132252925,-612.8061818,0.00011839,2]
[346633601,1735132252935,-1764.31,0.00011839,2]
[346633602,1735132252945,-500.0,0.00011839,2]
[346633603,1735132252955,-500.0,0.00011839,2]
[346633604,1735132252965,-500.0,0.00011839,2]
[346633605,1735132252974,-500.0,0.00011839,2]
[346633606,1735132252985,-12093.27,0.00011839,2]
[346633607,1735132252994,-500.0,0.00011839,2]
[346633608,1735132253003,-389.36896779,0.00011839,2]
[346633609,1735132253013,-500.0,0.00011839,2]
[346633610,1735132253023,-500.0,0.00011839,2]
[346633611,1735132253032,-1264.33,0.00011839,2]
[346633612,1735132253042,-703.1,0.00011839,2]
[346633613,1735132253051,-500.0,0.0001184,2]
[346633614,1735132253061,-500.0,0.0001184,2]
[346633615,1735132253070,-500.0,0.0001184,2]
[346633616,1735132253079,-500.0,0.0001184,2]
[346633617,1735132253089,-565.45,0.0001184,2]
[346633618,1735132253099,-500.0,0.0001184,2]
[346633619,1735132253109,-219.83670781,0.0001184,2]
[346633620,1735132253125,-311.78855178,0.0001184,2]
[346633621,1735132253135,-500.0,0.0001184,2]
[346633622,1735132253145,-500.0,0.0001184,2]
[346633623,1735132253154,-832.59,0.0001184,2]
[346633624,1735132253164,-500.0,0.0001184,2]
[346633625,1735132253174,-500.0,0.0001184,2]
[346633626,1735132253185,-513.01,0.0001184,2]
[346633627,1735132253195,-500.0,0.0001184,2]
[346633628,1735132253206,-533.99,0.0001184,2]
[346633629,1735132253216,-500.0,0.0001184,2]
[346633630,1735132253227,-500.0,0.0001184,2]
[346633631,1735132253237,-500.0,0.0001184,2]
[346633632,1735132253247,-500.0,0.0001184,2]
[346633633,1735132253258,-500.0,0.0001184,2]
[346633634,1735132253268,-500.0,0.0001184,2]
[346633635,1735132253279,-500.0,0.0001184,2]
[346633636,1735132253288,-500.0,0.0001184,2]
[346633637,1735132253298,-500.0,0.0001184,2]
[346633638,1735132253308,-500.0,0.0001184,2]
[346633639,1735132253318,-500.0,0.0001184,2]
[346633640,1735132253327,-500.0,0.0001184,2]
[346633641,1735132253337,-500.0,0.0001184,2]
[346633642,1735132253347,-500.0,0.0001184,2]
[346633643,1735132253357,-500.0,0.0001184,2]
[346633644,1735132253366,-500.0,0.0001184,2]
[346633645,1735132253377,-500.0,0.0001184,2]
[346633646,1735132253387,-852.28,0.0001184,2]
[346633647,1735132253398,-500.0,0.0001184,2]
[346633648,1735132253408,-603.79,0.0001184,2]
[346633649,1735132253418,-655.35,0.0001184,2]
[346633650,1735132253428,-500.0,0.0001184,2]
[346633651,1735132253437,-500.0,0.0001184,2]
[346633652,1735132253447,-500.0,0.0001184,2]
[346633653,1735132253457,-596.55,0.00011844,2]
[346633654,1735132253467,-500.0,0.00011844,2]
[346633655,1735132253477,-500.0,0.00011844,2]
[346633656,1735132253487,-626.01,0.0001188,2]
[346633657,1735132253497,-500.0,0.0001188,2]
[346633658,1735132253508,-500.0,0.0001188,2]
[346633659,1735132253517,-984.04,0.0001188,2]
[346633660,1735132253527,-991.93,0.0001188,2]
[346633661,1735132253537,-1907.29,0.0001188,2]
[346633662,1735132253547,-4510.57,0.0001188,2]
[346633663,1735132253557,-762.34,0.0001188,2]
[346633664,1735132253566,-1165.17,0.0001188,2]
[346633665,1735132253576,-892.23,0.0001188,2]
[346633666,1735132253587,-1857.86,0.0001188,2]
[346633667,1735132253596,-500.0,0.0001188,2]
[346633668,1735132253606,-826.67,0.0001188,2]
[346633669,1735132253616,-632.23,0.0001188,2]
[346633670,1735132253627,-1849.26,0.0001188,2]
[346633671,1735132253637,-6069.73,0.0001188,2]
[346633672,1735132253647,-500.0,0.0001188,2]
[346633673,1735132253657,-578.13,0.0001188,2]
[346633674,1735132253667,-500.0,0.0001188,2]
[346633675,1735132253677,-649.12,0.0001188,2]
[346633676,1735132253687,-2744.89,0.0001188,2]
[346633677,1735132253698,-500.0,0.0001188,2]
[346633678,1735132253708,-707.36,0.0001188,2]
[346633679,1735132253718,-1340.55,0.0001188,2]
[346633680,1735132253728,-500.0,0.0001188,2]
[346633681,1735132253738,-500.0,0.0001188,2]
[346633682,1735132253748,-1183.64,0.0001188,2]
[346633683,1735132253758,-392.11482876,0.00011881,2]
[346633684,1735132253769,-500.0,0.00011881,2]
[346633685,1735132253780,-500.0,0.00011881,2]
[346633686,1735132253790,-500.0,0.00011881,2]
[346633687,1735132253800,-500.0,0.00011881,2]
[346633688,1735132253810,-500.0,0.00011881,2]
[346633689,1735132253820,-624.50053612,0.00011881,2]
[346633690,1735132253829,-193.4826349,0.00011881,2]
[346633691,1735132253839,-500.0,0.00011881,2]
[346633692,1735132253850,-889.18,0.00011881,2]
[346633693,1735132253860,-500.0,0.00011881,2]
[346633694,1735132253869,-500.0,0.00011881,2]
[346633695,1735132253879,-500.0,0.00011881,2]
[346633696,1735132253889,-759.32,0.00011881,2]
[346633697,1735132253899,-1328.67,0.00011881,2]
[346633698,1735132253909,-3885.85,0.00011881,2]
[346633699,1735132253919,-657.64,0.00011881,2]
[346633700,1735132253928,-507.59,0.00011881,2]
[346633701,1735132253938,-2329.02,0.00011881,2]
[346633702,1735132253947,-891.39,0.00011881,2]
[346633703,1735132253957,-1118.12,0.00011881,2]
[346633704,1735132253966,-500.0,0.00011881,2]
[346633705,1735132253976,-969.57,0.00011881,2]
[346633706,1735132253987,-7758.38,0.00011881,2]
[346633707,1735132253997,-697.63,0.00011881,2]
[346633708,1735132254006,-604.4,0.00011881,2]
[346633709,1735132254016,-500.0,0.00011881,2]
[346633710,1735132254026,-842.51,0.00011881,2]
[346633711,1735132254036,-1536.34,0.00011881,2]
[346633712,1735132254046,-723.82,0.00011881,2]
[346633713,1735132254056,-815.39,0.00011881,2]
[346633714,1735132254066,-1578.85,0.00011881,2]
[346633715,1735132254075,-793.41,0.00011881,2]
[346633716,1735132254085,-500.0,0.00011881,2]
[346633717,1735132254095,-2776.06,0.00011881,2]
[346633718,1735132254105,-1529.99,0.00011881,2]
[346633719,1735132254115,-2486.78,0.00011881,2]
[346633720,1735132254126,-763.98,0.00011881,2]
[346633721,1735132254135,-500.0,0.00011881,2]
[346633722,1735132254145,-1000.0,0.00011881,2]
[346633723,1735132254155,-795.46,0.00011881,2]
[346633724,1735132254165,-500.0,0.00011881,2]
[346633725,1735132254174,-500.0,0.00011881,2]
[346633726,1735132254188,-500.0,0.00011881,2]
[346633727,1735132254198,-5450.66,0.00011881,2]
[346633728,1735132254208,-1204.63,0.00011881,2]
[346633729,1735132254217,-854.61,0.00011881,2]
[346633730,1735132254227,-863.43,0.00011881,2]
[346633731,1735132254236,-647.35,0.00011881,2]
[346633732,1735132254246,-500.0,0.00011881,2]
[346633733,1735132254258,-859.8,0.00011881,2]
[346633734,1735132254268,-670.11,0.00011881,2]
[346633735,1735132254278,-1560.65,0.00011881,2]
[346633736,1735132254288,-621.99,0.00011881,2]
[346633737,1735132254298,-1071.41491975,0.00011913,2]
[346633738,1735132254308,-458.5,0.00011943,2]
[346633739,1735132254318,-136448.13371342,0.00012,2]
[346633740,1735132254336,-390.21998,0.00012,2]
[346633741,1735132254355,-221609.35173831,0.00012,2]
[346633742,1735132254367,-42217.3649194,0.00012,2]
[346633743,1735132254381,-1042.45833233,0.00012,2]
[346633744,1735132254393,-51838.00368482,0.00012,2]
[346633755,1735132598523,524.55,8.383e-05,2]
[346633831,1735133431486,-371.18,9.876e-05,2]
[346633832,1735133431499,-196.64,9.897e-05,2]
[346633833,1735133431508,-491.72,0.00010021,2]
[346633834,1735133431517,-250.0,0.00010041,2]
[346633835,1735133431526,-502.91,0.00010059,2]
[346633836,1735133431535,-491.77,0.00010069,2]
[346633837,1735133431545,-493.47,0.00010083,2]
[346633838,1735133431554,-499.01,0.00010104,2]
[346633839,1735133431563,-1000.0,0.00010119,2]
[346633840,1735133431575,-490.03,0.00010119,2]
[346633841,1735133431584,-495.38,0.00010119,2]
[346633842,1735133431593,-496.87,0.00010528,2]
[346633843,1735133431602,-503.95,0.00010528,2]
[346633844,1735133431611,-495.09,0.00010528,2]
[346633845,1735133431861,-506.06,0.00010528,2]
[346633846,1735133431870,-506.25,0.00010528,2]
[346633847,1735133431879,-507.46,0.00010528,2]
[346633848,1735133431888,-246.28,0.00010529,2]
[346633849,1735133431897,-248.68,0.00010529,2]
[346633850,1735133431906,-252.27,0.00010529,2]
[346633851,1735133431915,-250.91,0.00010529,2]
[346633852,1735133431924,-253.23,0.00010529,2]
[346633853,1735133431933,-246.37,0.00010529,2]
[346633854,1735133431942,-245.22,0.00010529,2]
[346633855,1735133431951,-493.72,0.00010529,2]
[346633856,1735133431960,-504.89,0.00010529,2]
[346633857,1735133431969,-494.49,0.00010529,2]
[346633859,1735133431978,-494.15,0.00010529,2]
[346633860,1735133431987,-250.56,0.0001053,2]
[346633863,1735133432000,-250.29,0.0001053,2]
[346633865,1735133432009,-248.14,0.0001053,2]
[346633867,1735133432018,-252.8,0.0001053,2]
[346633869,1735133432026,-251.39,0.0001053,2]
[346633871,1735133432037,-253.23,0.0001053,2]
[346633873,1735133432045,-251.23,0.0001053,2]
[346633875,1735133432054,-246.45,0.0001053,2]
[346633877,1735133432064,-245.47,0.0001053,2]
[346633879,1735133432073,-248.25,0.0001053,2]
[346633881,1735133432082,-4757.4570509,0.00010639,2]
[346633883,1735133432090,-524.55,0.00010647,2]
[346633885,1735133432100,-252.66,0.00010649,2]
[346633886,1735133432109,-248.24,0.00010649,2]
[346633888,1735133432118,-249.42,0.00010649,2]
[346633890,1735133432127,-246.55,0.00010748,2]
[346633892,1735133432136,-247.43,0.00010748,2]
[346633894,1735133432145,-253.98,0.00010748,2]
[346633896,1735133432153,-223.365,0.00010748,2]
[346633898,1735133432162,-500.0,0.00010748,2]
[346633900,1735133432171,-500.0,0.00010748,2]
[346633902,1735133432180,-659.14,0.00010748,2]
[346633904,1735133432189,-500.0,0.00010748,2]
[346633906,1735133432198,-500.0,0.00010748,2]
[346633908,1735133432208,-500.0,0.00010748,2]
[346633910,1735133432217,-500.0,0.00010748,2]
[346633912,1735133432226,-500.0,0.00010748,2]
[346633914,1735133432235,-500.0,0.00010748,2]
[346633916,1735133432244,-500.0,0.00010748,2]
[346633918,1735133432252,-500.0,0.00010748,2]
[346633920,1735133432262,-500.0,0.00010748,2]
[346633922,1735133432270,-500.0,0.00010748,2]
[346633924,1735133432279,-500.0,0.00010748,2]
[346633926,1735133432288,-3746.767,0.00010748,2]
[346633928,1735133432297,-500.0,0.00010748,2]
[346633930,1735133432308,-500.0,0.00010748,2]
[346633932,1735133432318,-386.26512794,0.00010748,2]
[346633934,1735133432327,-249.6,0.00010748,2]
[346633936,1735133432336,-500.0,0.00010748,2]
[346633938,1735133432346,-500.0,0.00010748,2]
[346633940,1735133432355,-500.0,0.00010748,2]
[346633942,1735133432364,-500.0,0.00010748,2]
[346633943,1735133432372,-500.0,0.00010748,2]
[346633945,1735133432382,-500.0,0.00010748,2]
[346633947,1735133432391,-500.0,0.00010748,2]
[346633948,1735133432400,-674.72,0.00010748,2]
[346633949,1735133432409,-500.0,0.00010748,2]
[346633950,1735133432419,-500.0,0.00010748,2]
[346633951,1735133432428,-518.82,0.00010748,2]
[346633952,1735133432437,-500.0,0.00010748,2]
[346633953,1735133432446,-500.0,0.00010748,2]
[346633954,1735133432455,-500.0,0.00010748,2]
[346633955,1735133432464,-1541.4,0.000108,2]
[346633956,1735133432473,-800.0,0.00010876,2]
[346633957,1735133432481,-2100.0,0.00010876,2]
[346633958,1735133432490,-693.5694,0.000109,2]
[346633959,1735133432499,-500.0,0.00010999,2]
[346633961,1735133432509,-279.53646983,0.00010999,2]
[346633963,1735133432522,-500.0,0.00010999,2]
[346633964,1735133432531,-500.0,0.00010999,2]
[346633965,1735133432539,-500.0,0.00010999,2]
[346633966,1735133432549,-500.0,0.00010999,2]
[346633967,1735133432558,-500.0,0.00010999,2]
[346633968,1735133432568,-500.0,0.00010999,2]
[346633969,1735133432576,-500.0,0.00010999,2]
[346633971,1735133432585,-283.79,0.00010999,2]
[346633973,1735133432595,-500.0,0.00010999,2]
[346633975,1735133432604,-500.0,0.00010999,2]
[346633977,1735133432613,-500.0,0.00010999,2]
[346633979,1735133432622,-500.0,0.00010999,2]
[346633981,1735133432631,-509.88,0.00010999,2]
[346633983,1735133432640,-500.0,0.00010999,2]
[346633984,1735133432648,-500.0,0.00010999,2]
[346633986,1735133432657,-500.0,0.00010999,2]
[346633988,1735133432666,-500.0,0.00010999,2]
[346633990,1735133432675,-500.0,0.00010999,2]
[346633992,1735133432683,-500.0,0.00010999,2]
[346633994,1735133432692,-500.0,0.00010999,2]
[346633996,1735133432701,-389.94,0.00010999,2]
[346633998,1735133432709,-500.0,0.00010999,2]
[346634000,1735133432718,-500.0,0.00010999,2]
[346634002,1735133432727,-500.0,0.00010999,2]
[346634004,1735133432736,-500.0,0.00010999,2]
[346634006,1735133432746,-707.45,0.00010999,2]
[346634008,1735133432754,-500.0,0.00010999,2]
[346634010,1735133432763,-500.0,0.00010999,2]
[346634012,1735133432772,-500.0,0.00010999,2]
[346634014,1735133432781,-500.0,0.00010999,2]
[346634016,1735133432789,-500.0,0.00010999,2]
[346634018,1735133432798,-500.0,0.00010999,2]
[346634019,1735133432807,-500.0,0.00010999,2]
[346634021,1735133432816,-513.49,0.00010999,2]
[346634023,1735133432825,-521.13,0.00010999,2]
[346634025,1735133432834,-500.0,0.00010999,2]
[346634027,1735133432843,-500.0,0.00010999,2]
[346634029,1735133432852,-500.0,0.00010999,2]
[346634030,1735133432861,-500.0,0.00010999,2]
[346634031,1735133432870,-500.0,0.00010999,2]
[346634032,1735133432879,-500.0,0.00010999,2]
[346634033,1735133432888,-500.0,0.00010999,2]
[346634034,1735133432897,-1235.51,0.00010999,2]
[346634035,1735133432906,-500.0,0.00010999,2]
[346634036,1735133432915,-500.0,0.00010999,2]
[346634037,1735133432924,-500.0,0.00010999,2]
[346634038,1735133432933,-500.0,0.00010999,2]
[346634039,1735133432942,-1051.87,0.00010999,2]
[346634040,1735133432950,-500.0,0.00010999,2]
[346634041,1735133432959,-500.0,0.00010999,2]
[346634042,1735133432968,-2427.85,0.00010999,2]
[346634044,1735133432976,-3076.3,0.00010999,2]
[346634045,1735133432985,-500.0,0.00010999,2]
[346634046,1735133432994,-659.8,0.00010999,2]
[346634047,1735133433003,-1749.22,0.00010999,2]
[346634048,1735133433012,-734.18,0.00010999,2]
[346634049,1735133433021,-1843.8,0.00010999,2]
[346634050,1735133433030,-500.0,0.00010999,2]
[346634051,1735133433038,-500.0,0.00010999,2]
[346634052,1735133433048,-500.0,0.00010999,2]
[346634053,1735133433057,-625.33,0.00010999,2]
[346634054,1735133433069,-500.0,0.00010999,2]
[346634055,1735133433079,-520.63,0.00010999,2]
[346634056,1735133433089,-500.0,0.00010999,2]
[346634057,1735133433098,-500.0,0.00010999,2]
[346634058,1735133433108,-500.0,0.00010999,2]
[346634059,1735133433118,-705.68,0.00010999,2]
[346634060,1735133433127,-1828.59,0.00010999,2]
[346634061,1735133433137,-1113.19,0.00010999,2]
[346634062,1735133433146,-552.29,0.00010999,2]
[346634063,1735133433156,-500.0,0.00010999,2]
[346634064,1735133433166,-767.57,0.00010999,2]
[346634065,1735133433174,-500.0,0.00010999,2]
[346634066,1735133433182,-500.0,0.00010999,2]
[346634067,1735133433190,-611.48,0.00010999,2]
[346634068,1735133433198,-500.0,0.00010999,2]
[346634069,1735133433206,-500.0,0.00010999,2]
[346634070,1735133433214,-573.03,0.00010999,2]
[346634071,1735133433223,-500.0,0.00010999,2]
[346634072,1735133433232,-500.0,0.00010999,2]
[346634073,1735133433242,-732.41,0.00010999,2]
[346634074,1735133433251,-1249.92,0.00010999,2]
[346634075,1735133433261,-1528.62,0.00010999,2]
[346634076,1735133433270,-928.14,0.00010999,2]
[346634077,1735133433279,-500.0,0.00010999,2]
[346634078,1735133433288,-1216.27,0.00010999,2]
[346634079,1735133433297,-500.0,0.00010999,2]
[346634080,1735133433307,-500.0,0.00010999,2]
[346634081,1735133433318,-628.11,0.00010999,2]
[346634082,1735133433327,-779.04,0.00010999,2]
[346634083,1735133433337,-500.0,0.00010999,2]
[346634084,1735133433346,-500.0,0.00010999,2]
[346634085,1735133433355,-500.0,0.00010999,2]
[346634086,1735133433364,-597.24,0.00010999,2]
[346634087,1735133433373,-2197.71,0.00010999,2]
[346634088,1735133433382,-500.0,0.00010999,2]
[346634089,1735133433391,-1968.7,0.00010999,2]
[346634090,1735133433401,-500.0,0.00010999,2]
[346634091,1735133433409,-500.0,0.00010999,2]
[346634092,1735133433418,-3570.87,0.00010999,2]
[346634093,1735133433427,-1507.72,0.00010999,2]
[346634094,1735133433436,-1509.94,0.00010999,2]
[346634095,1735133433445,-500.0,0.00010999,2]
[346634096,1735133433454,-922.42,0.00010999,2]
[346634097,1735133433463,-603.52,0.00010999,2]
[346634098,1735133433472,-629.74,0.00010999,2]
[346634099,1735133433481,-500.0,0.00010999,2]
[346634100,1735133433491,-706.35,0.00010999,2]
[346634101,1735133433499,-500.0,0.00010999,2]
[346634102,1735133433513,-1470.81,0.00010999,2]
[346634103,1735133433523,-500.0,0.00010999,2]
[346634104,1735133433532,-500.0,0.00010999,2]
[346634105,1735133433540,-550.34,0.00010999,2]
[346634106,1735133433550,-654.45,0.00010999,2]
[346634107,1735133433559,-4315.1,0.00010999,2]
[346634108,1735133433569,-500.0,0.00010999,2]
[346634109,1735133433578,-1518.43,0.00010999,2]
[346634110,1735133433590,-717.61,0.00010999,2]
[346634111,1735133433599,-500.0,0.00010999,2]
[346634112,1735133433608,-1464.0,0.00010999,2]
[346634113,1735133433618,-500.0,0.00010999,2]
[346634114,1735133433627,-558.66,0.00010999,2]
[346634115,1735133433636,-953.67,0.00010999,2]
[346634116,1735133433645,-574.87,0.00010999,2]
[346634117,1735133433654,-500.51,0.00010999,2]
[346634118,1735133433664,-500.0,0.00010999,2]
[346634119,1735133433673,-500.0,0.00010999,2]
[346634120,1735133433682,-500.0,0.00010999,2]
[346634121,1735133433691,-4366.54995131,0.00010999,2]
[346634122,1735133433751,-438.65004869,0.00010999,2]
[346634123,1735133433760,-683.55,0.00010999,2]
[346634124,1735133433769,-500.0,0.00010999,2]
[346634125,1735133433778,-500.0,0.00010999,2]
[346634126,1735133433787,-500.0,0.00010999,2]
[346634127,1735133433795,-500.0,0.00010999,2]
[346634128,1735133433804,-614.72,0.00010999,2]
[346634129,1735133433813,-500.0,0.00010999,2]
[346634130,1735133433823,-513.89,0.00010999,2]
[346634131,1735133433832,-793.1,0.00010999,2]
[346634132,1735133433842,-500.0,0.00010999,2]
[346634133,1735133433851,-500.0,0.00010999,2]
[346634134,1735133433860,-500.0,0.00010999,2]
[346634135,1735133433869,-512.48,0.00010999,2]
[346634136,1735133433879,-1470.26,0.00010999,2]
[346634137,1735133433888,-500.0,0.00010999,2]
[346634138,1735133433897,-500.0,0.00010999,2]
[346634139,1735133433906,-1061.27,0.00010999,2]
[346634140,1735133433915,-361.34205726,0.00010999,2]
[346634142,1735133437379,-138.65794274,0.00010999,2]
[346634143,1735133437388,-500.0,0.00010999,2]
[346634144,1735133437398,-1352.3098573,0.00010999,2]
[346634145,1735133437609,-1950.9801427,0.00010999,2]
[346634146,1735133437619,-1848.95031545,0.00010999,2]
[346634231,1735133439437,-702.51968455,0.00010999,2]
[346634232,1735133439447,-500.0,0.00010999,2]
[346634233,1735133439456,-237.30230142,0.00010999,2]
[346634234,1735133439467,-262.69769858,0.00010999,2]
[346634235,1735133439476,-559.99,0.00010999,2]
[346634236,1735133439485,-500.0,0.00010999,2]
[346634237,1735133439493,-1593.45031545,0.00010999,2]
[346634238,1735133439680,-3588.648222,0.00010999,2]
[346634239,1735133439806,-4895.63146255,0.00010999,2]
[346634240,1735133439816,-500.0,0.00010999,2]
[346634241,1735133439825,-680.67,0.00010999,2]
[346634242,1735133439835,-500.0,0.00010999,2]
[346634243,1735133439844,-937.04,0.00010999,2]
[346634244,1735133439853,-500.0,0.00010999,2]
[346634245,1735133439862,-621.96,0.00010999,2]
[346634246,1735133439871,-690.9,0.00010999,2]
[346634248,1735133439880,-530.5,0.00010999,2]
[346634250,1735133439889,-1053.61,0.00010999,2]
[346634252,1735133439899,-500.0,0.00010999,2]
[346634254,1735133439908,-1184.03,0.00010999,2]
[346634256,1735133439917,-585.92,0.00010999,2]
[346634258,1735133439926,-500.0,0.00010999,2]
[346634259,1735133439935,-1008.04,0.00010999,2]
[346634261,1735133439944,-500.0,0.00010999,2]
[346634263,1735133439953,-314244.47154353,0.00011,2]
[346634266,1735133439964,-114807.56950521,0.00011,2]
[346634268,1735133439975,-2954.49,0.00011,2]
[346634271,1735133439993,-548.00952576,0.00011,2]
[346634302,1735133442653,-500.0,0.00010999,2]
[346634303,1735133442662,-13136.89355177,0.00011,2]
[346634304,1735133442769,-3313.65555235,0.00011,2]
[346634306,1735133445560,-632.31,0.00010999,2]
[346634307,1735133445570,-2948.12,0.00010999,2]
[346634308,1735133445581,-35524.93698529,0.00011,2]
[346634309,1735133445689,-6596.45302238,0.00011,2]
[346634310,1735133445757,-1593.66012594,0.00011,2]
[346634311,1735133458759,492.03,9.057e-05,2]
[346634318,1735134520420,1416.21,9.427e-05,2]
[346634440,1735134568134,539.65,8.219e-05,2]
[346634468,1735134631696,-167.62,9.642e-05,2]
[346634469,1735134631706,-133.98,9.773e-05,2]
[346634470,1735134631717,-116.02,9.773e-05,2]
[346634471,1735134631727,-229.82,9.774e-05,2]
[346634472,1735134631735,-111.48324151,9.777e-05,2]
[346634473,1735134631746,-118.33675849,9.777e-05,2]
[346634474,1735134631755,-229.82,9.779e-05,2]
[346634475,1735134631764,-229.82,9.782e-05,2]
[346634476,1735134631773,-229.82,9.784e-05,2]
[346634477,1735134631782,-229.82,9.787e-05,2]
[346634478,1735134631791,-229.82,9.79e-05,2]
[346634479,1735134631802,-229.82,9.792e-05,2]
[346634480,1735134631811,-229.82,9.795e-05,2]
[346634481,1735134631820,-229.82,9.797e-05,2]
[346634482,1735134631829,-229.82,9.8e-05,2]
[346634483,1735134631839,-229.82,9.802e-05,2]
[346634484,1735134631848,-229.82,9.805e-05,2]
[346634485,1735134631857,-326.34,9.806e-05,2]
[346634486,1735134631866,-229.82,9.808e-05,2]
[346634487,1735134631879,-229.82,9.81e-05,2]
[346634488,1735134631889,-229.82,9.813e-05,2]
[346634489,1735134631898,-229.82,9.815e-05,2]
[346634490,1735134631908,-229.82,9.818e-05,2]
[346634491,1735134631921,-229.82,9.82e-05,2]
[346634492,1735134631930,-229.82,9.823e-05,2]
[346634493,1735134631940,-250.0,9.933e-05,2]
[346634494,1735134631950,-300.0,9.974e-05,2]
[346634495,1735134631959,-10348.66463277,9.975e-05,2]
[346634496,1735134631971,-13551.33536723,9.975e-05,2]
[346634497,1735134631980,-337.79,0.00010118,2]
[346634499,1735134631991,-501.71,0.00010138,2]
[346634501,1735134632004,-495.35,0.00010152,2]
[346634503,1735134632013,-509.25,0.00010175,2]
[346634505,1735134632023,-507.26,0.00010214,2]
[346634507,1735134632032,-495.29,0.00010279,2]
[346634509,1735134632041,-498.19,0.00010279,2]
[346634511,1735134632051,-495.59,0.00010279,2]
[346634513,1735134632060,-1000.0,0.00010279,2]
[346634515,1735134632069,-163.07,0.00010383,2]
[346634517,1735134632078,-539.65,0.00010442,2]
[346634519,1735134632087,-499.71,0.00010554,2]
[346634521,1735134632096,-500.0,0.00010575,2]
[346634523,1735134632105,-494.2,0.0001061,2]
[346634525,1735134632115,-508.11,0.00010683,2]
[346634526,1735134632128,-1600.0,0.000107,3]
[346634527,1735134632138,-508.05,0.00010779,2]
[346634528,1735134632147,-496.93,0.00010779,2]
[346634529,1735134632157,-492.77,0.00010779,2]
[346634530,1735134632166,-498.8,0.00010779,2]
[346634531,1735134632175,-508.52,0.00010779,2]
[346634532,1735134632185,-494.89,0.00010779,2]
[346634533,1735134632195,-500.17,0.00010779,2]
[346634534,1735134632205,-505.35,0.00010779,2]